{"text_format":"1","workbook":"xlsx","n_sheets":5,"sheets":["Verpackungsdatenblatt","Mold pictures","Language","Explanation","History"],"not_rendered":{"charts":0,"images":4,"macros":1,"external_links":0,"defined_names":9,"comments":0,"pivot_tables":0},"unopened":[],"bounds":{"document_bytes":16777216,"sheet_cells":100000,"rows_first":2000,"rows_last":500,"rows_between":2000,"halvings":0,"cell_chars":16384,"cell_head_chars":4096},"cells_cut":0,"cells_raw":0,"read":"whole","date_system":"1900"}

{"sheet":"Verpackungsdatenblatt","index":0,"n_rows":58,"n_cols":8,"rows_kept":58,"cut":false,"hidden":false,"merged":[[58,2,59,3],[58,4,59,5],[57,2,57,3],[57,4,57,5],[48,2,48,3],[48,4,48,5],[49,4,55,5],[47,2,47,5],[49,2,55,3],[6,3,6,4],[7,3,7,4],[8,3,8,4],[11,2,11,3],[9,3,9,4],[3,2,4,3],[3,21,3,27],[0,12,0,15],[2,17,2,20],[2,21,2,27],[0,16,0,19],[3,7,8,20],[7,5,9,5]]}
[null,null,"Sprachauswahl\nSelect Language"]
[]
[]
[null,null,{"$f":"HLOOKUP(Language!$B$2,Language!$C$14:G117,4)","v":"Packaging Data Sheet"},null,{"$f":"HLOOKUP(Language!$B$2,Language!$C$14:I115,18)","v":" Date of issue"},null,null,{"$f":"HLOOKUP(Language!$B$2,Language!$C$14:J121,71)","v":"You will find a \nexplanation of the \nindividual fields\n in the register sheet\n \"Explanation\" !"}]
[null,null,null,null,{"$f":"HLOOKUP(Language!$B$2,Language!$C$14:I116,19)","v":" Revision status"}]
[]
[null,"1.",{"$f":"HLOOKUP(Language!$B$2,Language!$C$14:G121,5)","v":" Material description"},null,null,{"$f":"HLOOKUP(Language!$B$2,Language!$C$14:J121,8)","v":" Part Weight in kg "}]
[null,null,{"$f":"HLOOKUP(Language!$B$2,Language!$C$14:G138,6)","v":" Part number "}]
[null,null,{"$f":"HLOOKUP(Language!$B$2,Language!$C$14:G139,7)","v":" Supplier partnumber "}]
[null,null,{"$f":"HLOOKUP(Language!$B$2,Language!$C$14:G139,119)","v":" Suppliernumber"}]
[]
[null,null,{"$f":"HLOOKUP(Language!$B$2,Language!$C$14:G141,9)","v":" Customer"},null,{"$f":"HLOOKUP(Language!$B$2,Language!$C$14:I141,10)","v":" Supplier"}]
[null,null,{"$f":"HLOOKUP(Language!$B$2,Language!$C$14:G142,11)","v":" Customer details (address) "},{"$f":"HLOOKUP(Language!$B$2,Language!$C$14:H142,12)","v":" Delivery / Invoice to"},{"$f":"HLOOKUP(Language!$B$2,Language!$C$14:I142,17)","v":" Supplier details (address) "},{"$f":"HLOOKUP(Language!$B$2,Language!$C$14:J142,12)","v":" Delivery / Invoice to"}]
[]
[null,null,null,{"$f":"HLOOKUP(Language!$B$2,Language!$C$14:H144,13)","v":" Contact person"},null,{"$f":"HLOOKUP(Language!$B$2,Language!$C$14:J144,13)","v":" Contact person"}]
[]
[null,null,null,{"$f":"HLOOKUP(Language!$B$2,Language!$C$14:H146,14)","v":" Phone number"},null,{"$f":"HLOOKUP(Language!$B$2,Language!$C$14:J146,14)","v":" Phone number"}]
[]
[null,null,null,{"$f":"HLOOKUP(Language!$B$2,Language!$C$14:H148,15)","v":" Fax number"},null,{"$f":"HLOOKUP(Language!$B$2,Language!$C$14:J148,15)","v":" Fax number"}]
[null,null," "]
[null,null,null,{"$f":"HLOOKUP(Language!$B$2,Language!$C$14:H150,16)","v":" E-mail address"},null,{"$f":"HLOOKUP(Language!$B$2,Language!$C$14:J150,16)","v":" E-mail address"}]
[null,null," "]
[]
[null,"2.",{"$f":"HLOOKUP(Language!$B$2,Language!$C$14:G153,20)","v":" Packaging Description "}]
[]
[]
[null,null,{"$f":"HLOOKUP(Language!$B$2,Language!$C$14:G153,62)","v":"  Basic packaging"},null,{"$f":"HLOOKUP(Language!$B$2,Language!$C$14:G154,101)","v":"reusable"},{"$f":"HLOOKUP(Language!$B$2,Language!$C$14:G154,104)","v":"one-way"}]
[null,null,{"$f":"HLOOKUP(Language!$B$2,Language!$C$14:G154,24)","v":" 1) Parts assembly:"},{"$f":"HLOOKUP(Language!$B$2,Language!$C$14:H154,27)","v":" arbitrated"},{"$f":"HLOOKUP(Language!$B$2,Language!$C$14:I154,25)","v":" poured"},{"$f":"HLOOKUP(Language!$B$2,Language!$C$14:J154,26)","v":" is set"}]
[]
[null,null,{"$f":"HLOOKUP(Language!$B$2,Language!$C$14:G156,63)","v":"  Packing material"},{"$f":"HLOOKUP(Language!$B$2,Language!$C$14:H156,61)","v":"  PE-bag"},{"$f":"HLOOKUP(Language!$B$2,Language!$C$14:I156,64)","v":"  Film"},{"$f":"HLOOKUP(Language!$B$2,Language!$C$14:J156,66)","v":" Layer pads"}]
[null,null,{"$f":"HLOOKUP(Language!$B$2,Language!$C$14:G157,90)","v":"  Other packaging: accurate description!"},{"$f":"HLOOKUP(Language!$B$2,Language!$C$14:H157,65)","v":"  Other"},null,{"$f":"HLOOKUP(Language!$B$2,Language!$C$14:H157,68)","v":"  Carton"}]
[null,null,{"$f":"HLOOKUP(Language!$B$2,Language!$C$14:G154,44)","v":" Special packaging / Trays"},null,{"$f":"HLOOKUP(Language!$B$2,Language!$C$14:G154,101)","v":"reusable"},{"$f":"HLOOKUP(Language!$B$2,Language!$C$14:G154,104)","v":"one-way"}]
[null,null,{"$f":"HLOOKUP(Language!$B$2,Language!$C$14:G156,45)","v":" Tray description"},null,{"$f":"HLOOKUP(Language!$B$2,Language!$C$14:I156,46)","v":" Drawing number"}]
[null,null,{"$f":"HLOOKUP(Language!$B$2,Language!$C$14:G157,47)","v":" Manufacturer"},null,{"$f":"HLOOKUP(Language!$B$2,Language!$C$14:I157,31)","v":"  Diameters in mm   (L x W x H)"}]
[null,null,{"$f":"HLOOKUP(Language!$B$2,Language!$C$14:G158,120)","v":" SAP Ordernumber"},null,{"$f":"HLOOKUP(Language!$B$2,Language!$C$14:I158,23)","v":" Owner"}]
[null,null,{"$f":"HLOOKUP(Language!$B$2,Language!$C$14:G158,121)","v":" empty packaging number"},null,{"$f":"HLOOKUP(Language!$B$2,Language!$C$14:I159,48)","v":" Quantity of pieces per tray"}]
[null,null,{"$f":"HLOOKUP(Language!$B$2,Language!$C$14:G159,88)","v":"  Other / Other packaging"},null,{"$f":"HLOOKUP(Language!$B$2,Language!$C$14:G188,87)","v":"  Quantity trays per container / \n  carton"}]
[null,null,{"$f":"HLOOKUP(Language!$B$2,Language!$C$14:G158,67)","v":"  Collective package"},null,{"$f":"HLOOKUP(Language!$B$2,Language!$C$14:I158,101)","v":"reusable"},{"$f":"HLOOKUP(Language!$B$2,Language!$C$14:J158,104)","v":"one-way"}]
[null,null,{"$f":"HLOOKUP(Language!$B$2,Language!$C$14:G148,72)","v":" Description"},null,{"$f":"HLOOKUP(Language!$B$2,Language!$C$14:I148,31)","v":"  Diameters in mm   (L x W x H)"}]
[null,null,{"$f":"HLOOKUP(Language!$B$2,Language!$C$14:G150,30)","v":" Dust Cover"},null,{"$f":"HLOOKUP(Language!$B$2,Language!$C$14:I149,75)","v":"  Owner (only reusable packaging)"}]
[null,null,{"$f":"HLOOKUP(Language!$B$2,Language!$C$14:G149,73)","v":" Quantity of pieces per box"},null,{"$f":"HLOOKUP(Language!$B$2,Language!$C$14:I149,74)","v":"  Gross weight per box"}]
[null,null,{"$f":"HLOOKUP(Language!$B$2,Language!$C$14:G150,83)","v":"  stackable"},{"$f":"HLOOKUP(Language!$B$2,Language!$C$14:I150,84)","v":"  not stackable"},{"$f":"HLOOKUP(Language!$B$2,Language!$C$14:G188,89)","v":"  Remarks"}]
[null,null,{"$f":"HLOOKUP(Language!$B$2,Language!$C$14:G162,76)","v":"  Shipping unit"},null,{"$f":"HLOOKUP(Language!$B$2,Language!$C$14:I162,101)","v":"reusable"},{"$f":"HLOOKUP(Language!$B$2,Language!$C$14:J162,104)","v":"one-way"}]
[null,null,{"$f":"HLOOKUP(Language!$B$2,Language!$C$14:G163,68)","v":"  Carton"},{"$f":"HLOOKUP(Language!$B$2,Language!$C$14:H163,78)","v":"  Euro pallet"},{"$f":"HLOOKUP(Language!$B$2,Language!$C$14:I163,79)","v":"  One way pallet"},{"$f":"HLOOKUP(Language!$B$2,Language!$C$14:J163,80)","v":"  Pallet cage"}]
[null,null,{"$f":"HLOOKUP(Language!$B$2,Language!$C$14:G164,100)","v":"plastic pallet"},{"$f":"HLOOKUP(Language!$B$2,Language!$C$14:H164,85)","v":"  Mixed pallet"},{"$f":"HLOOKUP(Language!$B$2,Language!$C$14:J164,51)","v":" GB-pallet"},{"$f":"HLOOKUP(Language!$B$2,Language!$C$14:I164,81)","v":"  Other"}]
[null,null,{"$f":"HLOOKUP(Language!$B$2,Language!$C$14:G153,82)","v":"  Quantity of Collective package / \n  shipping unit"},null,{"$f":"HLOOKUP(Language!$B$2,Language!$C$14:I153,86)","v":"  Gross weight per shipping unit"}]
[null,null,{"$f":"HLOOKUP(Language!$B$2,Language!$C$14:G157,31)","v":"  Diameters in mm   (L x W x H)"},null,{"$f":"HLOOKUP(Language!$B$2,Language!$C$14:I154,102)","v":"  Cover"}]
[null,null,{"$f":"HLOOKUP(Language!$B$2,Language!$C$14:G188,89)","v":"  Remarks"},{"$f":"HLOOKUP(Language!$B$2,Language!$C$14:H188,29)","v":" Weight in kg"}]
[null,null,{"$f":"HLOOKUP(Language!$B$2,Language!$C$14:G190,55)","v":"  Packaging description"},null,{"$f":"HLOOKUP(Language!$B$2,Language!$C$14:I190,60)","v":" Photo"}]
[]
[]
[]
[]
[]
[]
[]
[]
[null,null,{"$f":"HLOOKUP(Language!$B$2,Language!$C$14:G200,58)","v":" Jopp contact person - signature"},null,{"$f":"HLOOKUP(Language!$B$2,Language!$C$14:I200,59)","v":" Supplier contact person - signature"}]

{"sheet":"Mold pictures","index":1,"n_rows":18,"n_cols":26,"rows_kept":18,"cut":false,"hidden":true,"merged":[[1,15,1,23],[1,25,1,27],[17,1,18,27]]}
[33,{"$f":"HLOOKUP(Language!$B$2,Language!$C$14:$J$121,192)","v":{"$error":"#REF!"}},null,null,null,null,null,null,null,null,null,null,null,{"$f":"Verpackungsdatenblatt!#REF!","v":{"$error":"#REF!"}},null,null,{"$f":"Verpackungsdatenblatt!#REF!","v":{"$error":"#REF!"}},null,null,{"$f":"Verpackungsdatenblatt!#REF!","v":{"$error":"#REF!"}},null,null,{"$f":"Verpackungsdatenblatt!#REF!","v":{"$error":"#REF!"}}]
[null,{"$f":"HLOOKUP(Language!$B$2,Language!$C$14:$J$121,349)","v":{"$error":"#REF!"}},null,null,null,null,null,null,null,null,null,null,null,{"$f":"Verpackungsdatenblatt!#REF!","v":{"$error":"#REF!"}},null,{"$f":"Verpackungsdatenblatt!#REF!","v":{"$error":"#REF!"}},null,null,null,null,null,null,null,null,null,{"$f":"IF(Verpackungsdatenblatt!#REF!=\"\",\"\",Verpackungsdatenblatt!#REF!)","v":{"$error":"#REF!"}}]
[]
[]
[]
[]
[]
[]
[]
[]
[]
[]
[]
[]
[]
[]
[]
[null,{"$f":"HLOOKUP(Language!$B$2,Language!$C$14:$J$121,350)","v":{"$error":"#REF!"}}]

{"sheet":"Language","index":2,"n_rows":137,"n_cols":18,"rows_kept":137,"cut":false,"hidden":true,"merged":[]}
[null,null,null,"►",null,null,null,null,null,null,null,null,null,null,"►"]
[null,2,"Festlegung der Sprache","Sprachauswahl"]
[null,null,null,"Deutsch"]
[null,null,"Version:","English"]
[null,2,"100","中文"]
[null,null,"Siehe rechts - Erläuterungen zum Versionswechsel","Portugês (BRA)"]
[null,null,null,"Español"]
[null,null,null,"magyar"]
[null,null,null,"český"]
[null,1," Auswahl für Analyse-Seite","xxx"]
[null,null,null,null,null,null,null,null,null,null,null,null,null,null,"Versionsübersicht"]
["Änderungsstand",null,null,null,null,null,null,null,null,null,"Kavitätenauswahl",null,"Düsentyp"]
[null,0,"Deutsch","English","Chinesisch","Portugês (BRA)","Español","Ungarisch (magyar)","Tschechisch (český)",null,1,null,1,null,"1.0","2005-07-15","Abgestimmte Grundfassung aus Wolfgang Wachters Parameterblatt"]
[null,1,1,2,3,4,5,7,8,6,{"$f":"HLOOKUP(Language!$B$2,Language!$C$14:$G$121,326)","v":{"$error":"#REF!"}},null,{"$f":"HLOOKUP(Language!$B$2,Language!$C$14:$G$121,563)","v":{"$error":"#REF!"}},null,"1.1","2005-08-04","Chinesische Sprachausgabe"]
[null,2,"Sprachauswahl","Select Language",null,null,null,null,null,"clean 2",1,null,{"$f":"HLOOKUP(Language!$B$2,Language!$C$14:$G$121,564)","v":{"$error":"#REF!"}},null,"1.2","2005-08-31","Überarbeitung durch Yufeng He, Positionskorrektur P18 bis P20"]
[null,3,"Deutsch","English",null,null,null,null,null,"clean 2",2,null,{"$f":"HLOOKUP(Language!$B$2,Language!$C$14:$G$121,565)","v":{"$error":"#REF!"}},null,"1.3","2006-02-24","Überarbeitung des Parameterblattes entsprechend Abstimmung Wachter, Schilling, Roth, Salzmann"]
[null,4,"Verpackungsdatenblatt                                                        ","Packaging Data Sheet",null,null,null,null,null,"clean 2",3,null,{"$f":"HLOOKUP(Language!$B$2,Language!$C$14:$G$121,566)","v":{"$error":"#REF!"}},null,"1.4","2006-03-06","Berechnung der Dosiergeschwindigkeit"]
[null,5," Materialbezeichnung"," Material description",null,null,null,null,null,"clean 2",4,null,{"$f":"HLOOKUP(Language!$B$2,Language!$C$14:$G$121,567)","v":{"$error":"#REF!"}},null,"nachfolgende Versionen",null,null,"Erstellung eines Werkzeugdatenblattes"]
[null,6," Materialnummer"," Part number ",null,null,null,null,null,"clean 2",5,null,{"$f":"HLOOKUP(Language!$B$2,Language!$C$14:$G$121,568)","v":{"$error":"#REF!"}}]
[null,7," Lieferantenteilenummer"," Supplier partnumber ",null,null,null,null,null,"clean 2",6,null,{"$f":"HLOOKUP(Language!$B$2,Language!$C$14:$G$121,569)","v":{"$error":"#REF!"}},null,"1.9","2007-02-16","Abstimmungsstand der Komplettvariante inklusive Vorschlag zur SAP-Überleitung"]
[null,8," Teilegewicht in kg"," Part Weight in kg ",null,null,null,null,null,"clean 2",8,null,{"$f":"HLOOKUP(Language!$B$2,Language!$C$14:$G$121,570)","v":{"$error":"#REF!"}},null,null,null,"- Layout und Steuerungsvorgaben in Abstimmung mit IT umgesetzt für alle Blätter"]
[null,9," Kunde"," Customer",null,null,null,null,null,"clean 2",12,null,{"$f":"HLOOKUP(Language!$B$2,Language!$C$14:$G$121,571)","v":{"$error":"#REF!"}},null,null,null,"- beinhalted  überarbeitete Version des MoldingParameterSheet1 vom Vorlagenserver"]
[null,10," Lieferant"," Supplier",null,null,null,null,null,"clean 2",16,null,{"$f":"HLOOKUP(Language!$B$2,Language!$C$14:$G$121,572)","v":{"$error":"#REF!"}},null,null,null,"- Auswahl der Kavitäten geändert"]
[null,11," Kundendetails (Adresse)"," Customer details (address) ",null,null,null,null,null,"clean 2",20,null,{"$f":"HLOOKUP(Language!$B$2,Language!$C$14:$G$121,573)","v":{"$error":"#REF!"}},null,null,null,"- beinhalted mit Verantwortlichen abgestimmte Variante des MoldflowInformationSheet"]
[null,12," Lieferung / Rechnung an"," Delivery / Invoice to",null,null,null,null,null,"clean 2",24,null,{"$f":"HLOOKUP(Language!$B$2,Language!$C$14:$G$121,574)","v":{"$error":"#REF!"}},null,null,null,"- beinhalted Kopierfunktion aus MoldingParameterSheet"]
[null,13," Ansprechpartner"," Contact person",null,null,null,null,null,"clean 2",32,null,{"$f":"HLOOKUP(Language!$B$2,Language!$C$14:$G$121,575)","v":{"$error":"#REF!"}},null,"2.0","2007-05-15","Überarbeitung zum Einsatz als QVP - Dokument (*) , Abstimmungsstand ZQU, ZVF, TKE"]
[null,14," Telefon-Nummer"," Phone number",null,null,null,null,null,"clean 2",36,null,null,null,"3.0","...","Kleinere Präzisierungen in den Texten"]
[null,15," Fax-Nummer"," Fax number",null,null,null,null,null,"clean 2",48,null,null,null,"4.0","xx.xx.2009","Textpräzisierungen, Kommentarfeld für Auswertung durch Prozess-Spezialisten , neue Sprache: Türkisch"]
[null,16," E-Mail-Adresse"," E-mail address",null,null,null,null,null,"clean 2",64,null,null,null,null,null,"Auswertungsseite neu angelegt; Spritzfehler-Matrix eingesetzt; Entfall der Fragen nach Moldflow-Variante, "]
[null,17," Lieferantendetails (Adresse)"," Supplier details (address) ",null,null,null,null,null,"clean 2",null,null,null,null,null,null,"Restfeuchtegehaltmessung hinzu"]
[null,18,"Ausgabedatum"," Date of issue",null,null,null,null,null,"clean 2",null,null,null,null,"5.0","2012-02-27","Herauslösung aus dem Parameterdatenblatt und Aktualisierung der Chinesischen Version, "]
[null,19,"Revisionsstand"," Revision status",null,null,null,null,null,"clean 2",null,null,null,null,null,null,"Brasilianisches Portugiesisch hinzugefügt"]
[null,20," Verpackungsbeschreibung"," Packaging Description ",null,null,null,null,null,"clean 2",null,null,null,null,"Index 100","2012-09-24","Neuauflage für Zentraleinkauf - SAP Eingabe entfällt, dafür neue Kopiermaske für Basisdaten"]
[null,21," Wiederverwendbare Verpackung"," Durable Packaging",null,null,null,null,null,"clean 2",null,null,null,null,null,null,"Umarbeitung zur Anpassung an Parameterblatt (Index 100), leicht verändertes layout entsprechend"]
[null,22," Einwegverpackung"," Expendable Packaging",null,null,null,null,null,"clean 2","8+8",null,null,null,null,null,"Wünschen von ZEK; Nur Deutsch / Englische Sprachumstellung gewünscht"]
[null,23," Eigentümer"," Owner",null,null,null,null,null,"clean 2","(1+1)+(1+1)"]
[null,24,"Teileanordnung:"," 1) Parts assembly:",null,null,null,null,null,"clean 2","(2+2)+(2+2)"]
[null,25," geschüttet"," poured",null,null,null,null,null,"clean 2","(4+4)+(4+4)"]
[null,26," gesetzt"," is set",null,null,null,null,null,"clean 2",{"$f":"HLOOKUP(Language!$B$2,Language!$C$14:$G$121,356)","v":{"$error":"#REF!"}}]
[null,27," geschlichtet"," arbitrated",null,null,null,null,null,"clean 2"]
[null,28," Behälter Nummer"," Container number",null,null,null,null,null,"clean 2"]
[null,29," Gewicht in kg"," Weight in kg",null,null,null,null,null,"clean 2"]
[null,30," Deckel"," Dust Cover",null,null,null,null,null,"clean 2"]
[null,31," Abmessung in mm   (L x B x H)","  Diameters in mm   (L x W x H)",null,null,null,null,null,"clean 2"]
[null,32," Palette"," Palett",null,null,null,null,null,"clean 2"]
[null,33," 2) Stapelbar"," 2) Stackable ",null,null,null,null,null,"clean 2"]
[null,34," Gesamtgewicht in kg brutto"," Total weight in kg-brutto",null,null,null,null,null,"clean 2"]
[null,35," Stückzahl pro Behälter"," Quantity of parts in container:",null,null,null,null,null,"clean 2"]
[null,36," Anzahl Behälter pro Palette"," Quantity of containers per pallet",null,null,null,null,null,"clean 2"]
[null,37," Stückzahl pro Palette"," Quantity of pieces per pallet",null,null,null,null,null,"clean 2"]
[null,38," Höhe der Ladeeinheit"," Height of the loading unit",null,null,null,null,null,"clean 2"]
[null,39," Karton"," Box",null,null,null,null,null,"clean 2"]
[null,40," Stückzahl pro Behälter / Karton"," Quantity of parts in container / box",null,null,null,null,null,"clean 2"]
[null,41," Anzahl Behälter / pro Karton"," Quantity of boxes per pallet",null,null,null,null,null,"clean 2"]
[null,42," Stückzahl pro Palette"," Quantity of pieces per pallet",null,null,null,null,null,"clean 2"]
[null,43," Höhe der Ladeeinheit"," Height of the loading unit",null,null,null,null,null,"clean 2"]
[null,44," Sonderpackmittel / Trays"," Special packaging / Trays"]
[null,45," Tray Bezeichnung"," Tray description"]
[null,46," Zeichnungsnummer"," Drawing number"]
[null,47," Hersteller"," Manufacturer"]
[null,48," Stückzahl pro Tray"," Quantity of pieces per tray"]
[null,49," Anzahl pro Behälter"," Quantity per box"]
[null,50," Tauschbehälter/-paletten"," Barter container / pallets"]
[null,51," GB-Palette"," GB-pallet"]
[null,52," Gitterbox-Palette"," Mesh box pallet",null,null,null,null,null,"clean 2"]
[null,53," Andere"," Other"]
[null,54," Andere Verpackung"," Other packaging material"]
[null,55," Verpackungsbeschreibung","  Packaging description"]
[null,56," Ergänzendes Material (Wellpappe, PE-Beutel, Sonstiges)"," Supplement material (corrugated carton, PE-bag,\n miscellaneous)"]
[null,57," Verbrauchsmaterial"," Expendable materials"]
[null,58,"Jopp Ansprechpartner - Unterschrift"," Jopp contact person - signature"]
[null,59," Lieferant Ansprechpartner - Unterschrift"," Supplier contact person - signature"]
[null,60," Foto"," Photo"]
[null,61," PE-Beutel","  PE-bag"]
[null,62," Grundverpackung","  Basic packaging",null,null,null,null,null,"clean 2"]
[null,63," Verpackungsmaterial","  Packing material",null,null,null,null,null,"clean 2"]
[null,64," Folie","  Film"]
[null,65," Sonstige","  Other"]
[null,66," Zwischenlagen"," Layer pads"]
[null,67," Sammelverpackung","  Collective package"]
[null,68," Karton","  Carton"]
[null,69," Behälter","  Container"]
[null,70," Gitterbox","  Gitterbox"]
[null,71,"Sie finden für \njedes individuell \nauszufüllende Feld\n eine genaue Erklärung unter \ndem Tabellenblatt\n \"Explanation\" !","You will find a \nexplanation of the \nindividual fields\n in the register sheet\n \"Explanation\" !"]
[null,72," Bezeichnung"," Description"]
[null,73," Stückzahl pro Behälter"," Quantity of pieces per box"]
[null,74," Bruttogewicht pro Behälter","  Gross weight per box"]
[null,75," Eigentümer (nur bei Mehrwegv.)","  Owner (only reusable packaging)"]
[null,76," Versandeinheit","  Shipping unit"]
[null,77,"Palette","  Pallet"]
[null,78," Europalette","  Euro pallet"]
[null,79," Einwegpalette","  One way pallet"]
[null,80," Gitterbox","  Pallet cage"]
[null,81," Sonstige","  Other"]
[null,82," Anzahl Sammelverpackung pro Versandeinheit","  Quantity of Collective package / \n  shipping unit"]
[null,83," stapelbar","  stackable"]
[null,84," nicht stapelbar","  not stackable"]
[null,85," Mischpalette","  Mixed pallet"]
[null,86," Bruttogewicht pro Versandeinheit","  Gross weight per shipping unit"]
[null,87," Anzahl Trays pro Behälter / Karton","  Quantity trays per container / \n  carton"]
[null,88," Andere / Sonstige Verpackungen","  Other / Other packaging"]
[null,89," Bemerkungen","  Remarks"]
[null,90," Sonstige Verpackung: genaue   Beschreibung!","  Other packaging: accurate description!"]
[null,91,"Ausgabedatum des Verpackungsdatenblattes zum jeweiligen Revisionsstand. \n(startet bei \"0\")","Date of issue of the packaging data sheet for the respective revision stand. (It starts with \"0\")"]
[null,92,"Angabe, wenn die Liefer- und oder Rechnungsadresse zu der unter \"Kundendetails\" angegebenen Adresse abweicht.","Fill up, if the delivery and / or invoice address deviates from the address given under \"Customer details\"."]
[null,93,"Angabe, wenn die Liefer- oder Rechnungsadresse von bereitgestellten Versandmaterial von der unter \"Lieferantendetails\" abweicht.","Fill up, if the delivery or invoice address deviates from provided shipping material from the \"delivery details\"."]
[null,94,"Ansprechpartner zu Inhalten dieses Verpackungsdatenblattes. \nBei Wechsel des Revisionsstandes muss der Ansprechpartner aktualisiert werden!","Contact for contents of this packaging data sheet.\nWhen changing revision status, the contact person has to be updated!"]
[null,95,"Direkte Verpackung der Bauteile ","Direct Packaging of Parts"]
[null,96,"Die SAP Bestellnummer der Trays (muss nur bei Eigentum Jopp von Jopp ausfüllt sein)\nDie Trays müssen unter der Leergutnummer auf den Lieferscheinen und in einem Leergutkonto geführt werden.","SAP Ordernumber of the Trays (must be filled of Jopp only by property of Jopp)\nThe trays must be kept under the empties number on the delivery notes and in an empties account."]
[null,97,"Verpackung der Sammelverpackung und Status bei Übergabe an Transportdienstleister","Packaging of the collective packaging and packaging Status when transferred to transport service provider"]
[null,98,"Maximalmenge der Sammelverpackung pro Versandeinheit und das dazugehörige Bruttogewicht angeben","Specify the maximum quantity of the collective packaging per shipping unit and the corresponding gross weight"]
[null,99,"Der Dateiname setzt sich wie folgt zusammen: \nVerpackungsdatenblatt_Jopp-Sachnummer_Revisionsstand_Lieferantennummer \nz.B. \n\"PackagingDataSheet_123456_Rev.0_12345\"","The file name is composed as follows:\nPacking data sheet_Jopp-Number_revisionsstatus_Suppliernumber\n\n\"Packing Data Sheet_123456_Rev.0_12345"]
[null,100," Kunststoffpalette","plastic pallet"]
[null,101," Mehrweg","reusable"]
[null,102," Deckel","  Cover"]
[null,103," Kantenschutz","edge protection"]
[null,104," Einweg","one-way"]
[null,105,"Bei Bedarf die Bezeichnung für den zu verwendenden Abschlussdeckel angeben","If its necessary, specify the designation for the cover to be used"]
[null,106,"Bitte senden Sie das Unterzeichnete Verpackungsdatenblatt als PDF-Datei in englischer Version und das Originale als Excel Datei an Ihre Kontaktperson zurück.","Please send the signed packaging data sheet as PDF in english version and the original as an Excel document back to your contact person."]
[null,107,"Hier die von Jopp vergebene Lieferantennummer eintragen","Insert here the supplier number given by jopp"]
[null,108,"Wenn dieses Tray für verschiedene Teile verwendbar ist, bitte die ebenfalls betroffenen Bauteile unter Bemerkungen angeben. Es muss für jedes Teil ein eigenes Verpackungsdatenblatt erstellt werden!","If these tray are used for more parts, please insert the also affected parts under \"Remarks\". For every part must be created a own packaging data sheet!",null,null,null,null,null,"clean 2"]
[null,109,"Das komplette Dokument in englischer Sprache ausfüllen!","Fill up the complete data sheet in english language! "]
[null,110,"Hier sind die Außenmaße der jeweiligen Verpackung anzugeben. ","Indicate the external dimensions of the relevant packaging here."]
[null,111,"Im Tabellenblatt \"History\" wird von dem unter \"Kunde\" genannte Ansprechpartner bei Änderungen des Revisionsstandes die Änderung mit Grund und Datum eingetragen","In the \"History\" table, the change with the reason and the date is entered by the contact person named under \"Customer\" in the case of changes to the revision status"]
[null,112," Änderungen zum vorherigen Revisisonsstand","Changes to previous Revision status"]
[null,113," Grund"," Reason "]
[null,114," Name"," Name"]
[null,115," Datum"," Date"]
[null,116," Historie Verpackungsdatenblatt"," History Packaging Data Sheet"]
[null,117," Beschreibung einzelner Felder"," Description of separate fields"]
[null,118," Allgemeines Umgehen mit dem Dokument"," General handling the document"]
[null,119," Lieferantennummer"," Suppliernumber"]
[null,120," SAP Bestellnummer"," SAP Ordernumber"]
[null,121," Leergutnummer"," empty packaging number"]
[null,122," Verpackung der Grund- und Sonderverpackung"," Packaging of Basic- and Specialpackaging"]
[null,123]
[null,124]

{"sheet":"Explanation","index":3,"n_rows":60,"n_cols":24,"rows_kept":60,"cut":false,"hidden":false,"merged":[[38,8,40,21],[34,8,36,21],[56,8,59,21],[1,8,2,21],[4,8,7,21],[12,8,15,21],[9,8,10,21],[17,8,19,21],[21,8,23,21],[25,8,27,21],[30,8,32,21],[42,8,43,21],[46,8,49,21],[51,8,54,21],[3,17,3,20],[9,23,12,32],[4,23,7,32],[1,23,2,32],[14,23,15,32],[17,23,19,32],[60,2,61,3],[60,4,61,5],[3,22,3,28],[4,2,5,3],[59,2,59,3],[59,4,59,5],[49,2,49,5],[50,2,50,3],[50,4,50,5],[51,2,57,3],[51,4,57,5],[11,3,11,4],[8,3,8,4],[9,3,9,4],[10,3,10,4],[13,2,13,3]]}
[]
[null,null,"Sprachauswahl\nSelect Language",null,null,null,null,null,{"$f":"HLOOKUP(Language!$B$2,Language!$C$14:G137,117)","v":" Description of separate fields"},null,null,null,null,null,null,null,null,null,null,null,null,null,null,{"$f":"HLOOKUP(Language!$B$2,Language!$C$14:G137,118)","v":" General handling the document"}]
[]
[]
[null,null,{"$f":"HLOOKUP(Language!$B$2,Language!$C$14:G117,4)","v":"Packaging Data Sheet"},null,{"$f":"HLOOKUP(Language!$B$2,Language!$C$14:I115,18)","v":" Date of issue"},null,null,null,{"$f":"HLOOKUP(Language!$B$2,Language!$C$14:G121,91)","v":"Date of issue of the packaging data sheet for the respective revision stand. (It starts with \"0\")"},null,null,null,null,null,null,null,null,null,null,null,null,null,null,{"$f":"HLOOKUP(Language!$B$2,Language!$C$14:G121,99)","v":"The file name is composed as follows:\nPacking data sheet_Jopp-Number_revisionsstatus_Suppliernumber\n\n\"Packing Data Sheet_123456_Rev.0_12345"}]
[null,null,null,null,{"$f":"HLOOKUP(Language!$B$2,Language!$C$14:I116,19)","v":" Revision status"}]
[]
[]
[null,"1.",{"$f":"HLOOKUP(Language!$B$2,Language!$C$14:G121,5)","v":" Material description"},null,null,{"$f":"HLOOKUP(Language!$B$2,Language!$C$14:J121,8)","v":" Part Weight in kg "}]
[null,null,{"$f":"HLOOKUP(Language!$B$2,Language!$C$14:G138,6)","v":" Part number "},null,null,null,null,null,{"$f":"HLOOKUP(Language!$B$2,Language!$C$14:G121,107)","v":"Insert here the supplier number given by jopp"},null,null,null,null,null,null,null,null,null,null,null,null,null,null,{"$f":"HLOOKUP(Language!$B$2,Language!$C$14:G121,106)","v":"Please send the signed packaging data sheet as PDF in english version and the original as an Excel document back to your contact person."}]
[null,null,{"$f":"HLOOKUP(Language!$B$2,Language!$C$14:G139,7)","v":" Supplier partnumber "}]
[null,null,{"$f":"HLOOKUP(Language!$B$2,Language!$C$14:G139,119)","v":" Suppliernumber"}]
[null,null,null,null,null,null,null,null,{"$f":"HLOOKUP(Language!$B$2,Language!$C$14:G121,92)","v":"Fill up, if the delivery and / or invoice address deviates from the address given under \"Customer details\"."}]
[null,null,{"$f":"HLOOKUP(Language!$B$2,Language!$C$14:G141,9)","v":" Customer"},null,{"$f":"HLOOKUP(Language!$B$2,Language!$C$14:I141,10)","v":" Supplier"}]
[null,null,{"$f":"HLOOKUP(Language!$B$2,Language!$C$14:G142,11)","v":" Customer details (address) "},{"$f":"HLOOKUP(Language!$B$2,Language!$C$14:H142,12)","v":" Delivery / Invoice to"},{"$f":"HLOOKUP(Language!$B$2,Language!$C$14:I142,17)","v":" Supplier details (address) "},{"$f":"HLOOKUP(Language!$B$2,Language!$C$14:J142,12)","v":" Delivery / Invoice to"},null,null,null,null,null,null,null,null,null,null,null,null,null,null,null,null,null,{"$f":"HLOOKUP(Language!$B$2,Language!$C$14:G122,109)","v":"Fill up the complete data sheet in english language! "}]
[]
[null,null,null,{"$f":"HLOOKUP(Language!$B$2,Language!$C$14:H144,13)","v":" Contact person"},null,{"$f":"HLOOKUP(Language!$B$2,Language!$C$14:J144,13)","v":" Contact person"}]
[null,null,null,null,null,null,null,null,{"$f":"HLOOKUP(Language!$B$2,Language!$C$14:G121,93)","v":"Fill up, if the delivery or invoice address deviates from provided shipping material from the \"delivery details\"."},null,null,null,null,null,null,null,null,null,null,null,null,null,null,{"$f":"HLOOKUP(Language!$B$2,Language!$C$14:G140,111)","v":"In the \"History\" table, the change with the reason and the date is entered by the contact person named under \"Customer\" in the case of changes to the revision status"}]
[null,null,null,{"$f":"HLOOKUP(Language!$B$2,Language!$C$14:H146,14)","v":" Phone number"},null,{"$f":"HLOOKUP(Language!$B$2,Language!$C$14:J146,14)","v":" Phone number"}]
[]
[null,null,null,{"$f":"HLOOKUP(Language!$B$2,Language!$C$14:H148,15)","v":" Fax number"},null,{"$f":"HLOOKUP(Language!$B$2,Language!$C$14:J148,15)","v":" Fax number"}]
[null,null," ",null,null,null,null,null,{"$f":"HLOOKUP(Language!$B$2,Language!$C$14:G121,94)","v":"Contact for contents of this packaging data sheet.\nWhen changing revision status, the contact person has to be updated!"}]
[null,null,null,{"$f":"HLOOKUP(Language!$B$2,Language!$C$14:H150,16)","v":" E-mail address"},null,{"$f":"HLOOKUP(Language!$B$2,Language!$C$14:J150,16)","v":" E-mail address"}]
[null,null," "]
[]
[null,"2.",{"$f":"HLOOKUP(Language!$B$2,Language!$C$14:G153,20)","v":" Packaging Description "},null,null,null,null,null,{"$f":"HLOOKUP(Language!$B$2,Language!$C$14:G121,95)","v":"Direct Packaging of Parts"}]
[]
[null,null,{"$f":"HLOOKUP(Language!$B$2,Language!$C$14:G153,62)","v":"  Basic packaging"},null,{"$f":"HLOOKUP(Language!$B$2,Language!$C$14:G154,101)","v":"reusable"},{"$f":"HLOOKUP(Language!$B$2,Language!$C$14:G154,104)","v":"one-way"}]
[null,null,{"$f":"HLOOKUP(Language!$B$2,Language!$C$14:G153,62)","v":"  Basic packaging"},null,{"$f":"HLOOKUP(Language!$B$2,Language!$C$14:G154,101)","v":"reusable"},{"$f":"HLOOKUP(Language!$B$2,Language!$C$14:G154,104)","v":"one-way"}]
[null,null,{"$f":"HLOOKUP(Language!$B$2,Language!$C$14:G154,24)","v":" 1) Parts assembly:"},{"$f":"HLOOKUP(Language!$B$2,Language!$C$14:H154,27)","v":" arbitrated"},{"$f":"HLOOKUP(Language!$B$2,Language!$C$14:I154,25)","v":" poured"},{"$f":"HLOOKUP(Language!$B$2,Language!$C$14:J154,26)","v":" is set"}]
[null,null,null,null,null,null,null,null,{"$f":"HLOOKUP(Language!$B$2,Language!$C$14:G121,108)","v":"If these tray are used for more parts, please insert the also affected parts under \"Remarks\". For every part must be created a own packaging data sheet!"}]
[null,null,{"$f":"HLOOKUP(Language!$B$2,Language!$C$14:G156,63)","v":"  Packing material"},{"$f":"HLOOKUP(Language!$B$2,Language!$C$14:H156,61)","v":"  PE-bag"},{"$f":"HLOOKUP(Language!$B$2,Language!$C$14:I156,64)","v":"  Film"},{"$f":"HLOOKUP(Language!$B$2,Language!$C$14:J156,66)","v":" Layer pads"}]
[null,null,{"$f":"HLOOKUP(Language!$B$2,Language!$C$14:G157,90)","v":"  Other packaging: accurate description!"},{"$f":"HLOOKUP(Language!$B$2,Language!$C$14:H157,65)","v":"  Other"},null,{"$f":"HLOOKUP(Language!$B$2,Language!$C$14:H157,68)","v":"  Carton"}]
[null,null,{"$f":"HLOOKUP(Language!$B$2,Language!$C$14:G154,44)","v":" Special packaging / Trays"},null,{"$f":"HLOOKUP(Language!$B$2,Language!$C$14:G154,101)","v":"reusable"},{"$f":"HLOOKUP(Language!$B$2,Language!$C$14:G154,104)","v":"one-way"}]
[null,null,{"$f":"HLOOKUP(Language!$B$2,Language!$C$14:G158,45)","v":" Tray description"},null,{"$f":"HLOOKUP(Language!$B$2,Language!$C$14:I158,46)","v":" Drawing number"},null,null,null,{"$f":"HLOOKUP(Language!$B$2,Language!$C$14:G113,96)","v":"SAP Ordernumber of the Trays (must be filled of Jopp only by property of Jopp)\nThe trays must be kept under the empties number on the delivery notes and in an empties account."}]
[null,null,{"$f":"HLOOKUP(Language!$B$2,Language!$C$14:G159,47)","v":" Manufacturer"},null,{"$f":"HLOOKUP(Language!$B$2,Language!$C$14:I159,31)","v":"  Diameters in mm   (L x W x H)"}]
[null,null,{"$f":"HLOOKUP(Language!$B$2,Language!$C$14:G160,120)","v":" SAP Ordernumber"},null,{"$f":"HLOOKUP(Language!$B$2,Language!$C$14:I160,23)","v":" Owner"}]
[null,null,{"$f":"HLOOKUP(Language!$B$2,Language!$C$14:G160,121)","v":" empty packaging number"},null,{"$f":"HLOOKUP(Language!$B$2,Language!$C$14:I161,48)","v":" Quantity of pieces per tray"}]
[null,null,{"$f":"HLOOKUP(Language!$B$2,Language!$C$14:G161,88)","v":"  Other / Other packaging"},null,{"$f":"HLOOKUP(Language!$B$2,Language!$C$14:G190,87)","v":"  Quantity trays per container / \n  carton"},null,null,null,{"$f":"HLOOKUP(Language!$B$2,Language!$C$14:G139,110)","v":"Indicate the external dimensions of the relevant packaging here."}]
[null,null,{"$f":"HLOOKUP(Language!$B$2,Language!$C$14:G158,67)","v":"  Collective package"},null,{"$f":"HLOOKUP(Language!$B$2,Language!$C$14:I158,101)","v":"reusable"},{"$f":"HLOOKUP(Language!$B$2,Language!$C$14:J158,104)","v":"one-way"}]
[null,null,{"$f":"HLOOKUP(Language!$B$2,Language!$C$14:G148,72)","v":" Description"},null,{"$f":"HLOOKUP(Language!$B$2,Language!$C$14:I148,31)","v":"  Diameters in mm   (L x W x H)"}]
[null,null,{"$f":"HLOOKUP(Language!$B$2,Language!$C$14:G150,30)","v":" Dust Cover"},null,{"$f":"HLOOKUP(Language!$B$2,Language!$C$14:I149,75)","v":"  Owner (only reusable packaging)"}]
[null,null,{"$f":"HLOOKUP(Language!$B$2,Language!$C$14:G149,73)","v":" Quantity of pieces per box"},null,{"$f":"HLOOKUP(Language!$B$2,Language!$C$14:I149,74)","v":"  Gross weight per box"},null,null,null,{"$f":"HLOOKUP(Language!$B$2,Language!$C$14:G136,122)","v":" Packaging of Basic- and Specialpackaging"}]
[null,null,{"$f":"HLOOKUP(Language!$B$2,Language!$C$14:G150,83)","v":"  stackable"},{"$f":"HLOOKUP(Language!$B$2,Language!$C$14:I150,84)","v":"  not stackable"},{"$f":"HLOOKUP(Language!$B$2,Language!$C$14:G188,89)","v":"  Remarks"}]
[null,null,{"$f":"HLOOKUP(Language!$B$2,Language!$C$14:G162,76)","v":"  Shipping unit"},null,{"$f":"HLOOKUP(Language!$B$2,Language!$C$14:I162,101)","v":"reusable"},{"$f":"HLOOKUP(Language!$B$2,Language!$C$14:J162,104)","v":"one-way"}]
[null,null,{"$f":"HLOOKUP(Language!$B$2,Language!$C$14:G163,68)","v":"  Carton"},{"$f":"HLOOKUP(Language!$B$2,Language!$C$14:H163,78)","v":"  Euro pallet"},{"$f":"HLOOKUP(Language!$B$2,Language!$C$14:I163,79)","v":"  One way pallet"},{"$f":"HLOOKUP(Language!$B$2,Language!$C$14:J163,80)","v":"  Pallet cage"}]
[null,null,{"$f":"HLOOKUP(Language!$B$2,Language!$C$14:G164,100)","v":"plastic pallet"},{"$f":"HLOOKUP(Language!$B$2,Language!$C$14:H164,85)","v":"  Mixed pallet"},{"$f":"HLOOKUP(Language!$B$2,Language!$C$14:J164,51)","v":" GB-pallet"},{"$f":"HLOOKUP(Language!$B$2,Language!$C$14:I164,81)","v":"  Other"},null,null,{"$f":"HLOOKUP(Language!$B$2,Language!$C$14:G121,97)","v":"Packaging of the collective packaging and packaging Status when transferred to transport service provider"}]
[null,null,{"$f":"HLOOKUP(Language!$B$2,Language!$C$14:G153,82)","v":"  Quantity of Collective package / \n  shipping unit"},null,{"$f":"HLOOKUP(Language!$B$2,Language!$C$14:I153,86)","v":"  Gross weight per shipping unit"}]
[null,null,{"$f":"HLOOKUP(Language!$B$2,Language!$C$14:G157,31)","v":"  Diameters in mm   (L x W x H)"},null,{"$f":"HLOOKUP(Language!$B$2,Language!$C$14:I154,102)","v":"  Cover"}]
[null,null,{"$f":"HLOOKUP(Language!$B$2,Language!$C$14:G188,89)","v":"  Remarks"},{"$f":"HLOOKUP(Language!$B$2,Language!$C$14:H188,29)","v":" Weight in kg"}]
[null,null,{"$f":"HLOOKUP(Language!$B$2,Language!$C$14:G190,55)","v":"  Packaging description"},null,{"$f":"HLOOKUP(Language!$B$2,Language!$C$14:I190,60)","v":" Photo"}]
[null,null,null,null,null,null,null,null,{"$f":"HLOOKUP(Language!$B$2,Language!$C$14:G121,98)","v":"Specify the maximum quantity of the collective packaging per shipping unit and the corresponding gross weight"}]
[]
[]
[]
[]
[null,null,null,null,null,null,null,null,{"$f":"HLOOKUP(Language!$B$2,Language!$C$14:G149,105)","v":"If its necessary, specify the designation for the cover to be used"}]
[]
[]
[null,null,{"$f":"HLOOKUP(Language!$B$2,Language!$C$14:G200,58)","v":" Jopp contact person - signature"},null,{"$f":"HLOOKUP(Language!$B$2,Language!$C$14:I200,59)","v":" Supplier contact person - signature"}]

{"sheet":"History","index":4,"n_rows":7,"n_cols":13,"rows_kept":7,"cut":false,"hidden":false,"merged":[[66,1,66,6],[66,7,66,10],[67,1,67,6],[67,7,67,10],[63,1,63,6],[63,7,63,10],[64,1,64,6],[64,7,64,10],[65,1,65,6],[65,7,65,10],[60,1,60,6],[60,7,60,10],[61,1,61,6],[61,7,61,10],[62,1,62,6],[62,7,62,10],[57,1,57,6],[57,7,57,10],[58,1,58,6],[58,7,58,10],[59,1,59,6],[59,7,59,10],[54,1,54,6],[54,7,54,10],[55,1,55,6],[55,7,55,10],[56,1,56,6],[56,7,56,10],[51,1,51,6],[51,7,51,10],[52,1,52,6],[52,7,52,10],[53,1,53,6],[53,7,53,10],[48,1,48,6],[48,7,48,10],[49,1,49,6],[49,7,49,10],[50,1,50,6],[50,7,50,10],[45,1,45,6],[45,7,45,10],[46,1,46,6],[46,7,46,10],[47,1,47,6],[47,7,47,10],[42,1,42,6],[42,7,42,10],[43,1,43,6],[43,7,43,10],[44,1,44,6],[44,7,44,10],[39,1,39,6],[39,7,39,10],[40,1,40,6],[40,7,40,10],[41,1,41,6],[41,7,41,10],[36,1,36,6],[36,7,36,10],[37,1,37,6],[37,7,37,10],[38,1,38,6],[38,7,38,10],[33,1,33,6],[33,7,33,10],[34,1,34,6],[34,7,34,10],[35,1,35,6],[35,7,35,10],[30,1,30,6],[30,7,30,10],[31,1,31,6],[31,7,31,10],[32,1,32,6],[32,7,32,10],[26,7,26,10],[27,7,27,10],[28,7,28,10],[29,7,29,10],[26,1,26,6],[27,1,27,6],[28,1,28,6],[29,1,29,6],[0,0,5,12],[20,7,20,10],[21,7,21,10],[22,7,22,10],[23,7,23,10],[24,7,24,10],[25,7,25,10],[14,7,14,10],[15,7,15,10],[16,7,16,10],[17,7,17,10],[18,7,18,10],[19,7,19,10],[8,7,8,10],[9,7,9,10],[10,7,10,10],[11,7,11,10],[12,7,12,10],[13,7,13,10],[20,1,20,6],[21,1,21,6],[22,1,22,6],[23,1,23,6],[24,1,24,6],[7,1,7,6],[6,1,6,6],[6,7,6,10],[7,7,7,10],[25,1,25,6],[14,1,14,6],[15,1,15,6],[16,1,16,6],[17,1,17,6],[18,1,18,6],[19,1,19,6],[8,1,8,6],[9,1,9,6],[10,1,10,6],[11,1,11,6],[12,1,12,6],[13,1,13,6]]}
[{"$f":"HLOOKUP(Language!$B$2,Language!$C$14:I130,116)","v":" History Packaging Data Sheet"}]
[]
[]
[]
[]
[]
[{"$f":"HLOOKUP(Language!$B$2,Language!$C$14:I116,19)","v":" Revision status"},{"$f":"HLOOKUP(Language!$B$2,Language!$C$14:I130,112)","v":"Changes to previous Revision status"},null,null,null,null,null,{"$f":"HLOOKUP(Language!$B$2,Language!$C$14:I130,113)","v":" Reason "},null,null,null,{"$f":"HLOOKUP(Language!$B$2,Language!$C$14:I130,114)","v":" Name"},{"$f":"HLOOKUP(Language!$B$2,Language!$C$14:I130,115)","v":" Date"}]